bitfinex-derivatives/quotes_BTCF0:USTF0_20250130
["timestamp","ask_amount","ask_price","bid_price","bid_amount"]
[1738262784758,0.19870558,105500.0,105490.0,0.577981]
[1738262784961,0.23490558,105500.0,105490.0,0.68158452]
[1738262785164,0.04534258,105500.0,105490.0,0.65498452]
[1738262785461,0.00914258,105500.0,105490.0,0.65498452]
[1738262786265,0.00914258,105500.0,105490.0,0.69498452]
[1738262786566,0.00914258,105500.0,105490.0,0.73008452]
[1738262791564,0.29700636,105530.0,105490.0,0.54050352]
[1738262791762,0.40190636,105530.0,105520.0,0.550327]
[1738262792668,0.50550988,105530.0,105520.0,0.550327]
[1738262792874,0.50850988,105530.0,105520.0,0.550327]
[1738262793262,0.51750988,105530.0,105520.0,0.551327]
[1738262794270,0.41390636,105530.0,105520.0,0.551327]
[1738262795075,0.42363479,105530.0,105520.0,0.551327]
[1738262795578,0.52581627,105530.0,105520.0,0.551327]
[1738262795776,0.42221275,105530.0,105520.0,0.551327]
[1738262796375,0.33733343,105530.0,105520.0,0.551327]
[1738262798973,0.33733343,105530.0,105520.0,0.65493052]
[1738262799782,0.13809,105530.0,105520.0,0.65493052]
[1738262800973,0.327599,105530.0,105520.0,0.551327]
[1738262801179,0.43120252,105530.0,105520.0,0.551327]
[1738262801778,0.257099,105530.0,105520.0,0.551327]
[1738262802278,0.324999,105530.0,105520.0,0.551327]
[1738262802679,0.324999,105530.0,105520.0,0.65493052]
[1738262802981,0.324999,105530.0,105520.0,0.551327]
[1738262803681,0.324999,105530.0,105520.0,0.65493052]
[1738262804079,0.13549,105530.0,105520.0,0.65493052]
[1738262804483,0.13549,105530.0,105520.0,0.69493052]
[1738262805882,0.03319,105530.0,105520.0,0.69493052]
[1738262806080,0.03319,105530.0,105520.0,0.75063052]
[1738262806975,0.03019,105530.0,105520.0,0.75063052]
[1738262807179,0.40930117,105530.0,105520.0,0.551327]
[1738262807371,0.44460117,105530.0,105520.0,0.551327]
[1738262807573,0.15148865,105530.0,105520.0,0.551327]
[1738262807771,0.15148865,105530.0,105520.0,0.65493052]
[1738262808375,0.14648865,105530.0,105520.0,0.65393052]
[1738262808575,0.33599765,105530.0,105520.0,0.550327]
[1738262810579,0.250999,105530.0,105520.0,0.550327]
[1738262810774,0.250999,105530.0,105520.0,0.71974049]
[1738262813884,0.02619,105530.0,105520.0,1.02334401]
[1738262814382,0.02619,105530.0,105520.0,0.71974049]
[1738262814592,0.215699,105530.0,105520.0,0.74634049]
[1738262815986,0.215699,105530.0,105520.0,0.71974049]
[1738262816387,0.251899,105530.0,105520.0,0.71974049]
[1738262817783,0.251899,105530.0,105520.0,0.82334401]
[1738262820583,0.30069765,105530.0,105520.0,0.82334401]
[1738262822586,0.30069765,105530.0,105520.0,0.85764401]
[1738262823987,0.30069765,105530.0,105520.0,1.08352867]
[1738262824178,0.30069765,105530.0,105520.0,0.97992515]
[1738262826487,0.30069765,105530.0,105520.0,0.94562515]
[1738262826687,0.33489765,105530.0,105520.0,0.94562515]
[1738262830901,0.33489765,105530.0,105520.0,0.77621166]
[1738262831602,0.14538865,105530.0,105520.0,0.77621166]
[1738262832504,0.33489765,105530.0,105520.0,0.77621166]
[1738262833806,0.43850117,105530.0,105520.0,0.77621166]
[1738262834007,0.46506117,105530.0,105520.0,0.77621166]
[1738262834197,0.36145765,105530.0,105520.0,0.77621166]
[1738262834905,0.33489765,105530.0,105520.0,0.77621166]
[1738262835104,0.43850117,105530.0,105520.0,0.77621166]
[1738262835305,0.33489765,105530.0,105520.0,0.77621166]
[1738262836005,0.30069765,105530.0,105520.0,0.77621166]
[1738262836404,0.43940117,105530.0,105520.0,0.22588466]
[1738262836610,0.189527,105520.0,105510.0,0.2824984]
[1738262836808,0.65393052,105520.0,105510.0,0.2824984]
[1738262836999,0.65393052,105520.0,105510.0,0.2282984]
[1738262837307,0.65393052,105520.0,105510.0,0.45415185]
[1738262837605,0.29313052,105520.0,105510.0,0.45415185]
[1738262837805,0.31969052,105520.0,105510.0,0.45415185]
[1738262838005,0.68049052,105520.0,105510.0,0.45415185]
[1738262838208,0.31969052,105520.0,105510.0,0.45415185]
[1738262838802,0.32069052,105520.0,105510.0,0.45415185]
[1738262838992,0.68149052,105520.0,105510.0,0.45415185]
[1738262839909,0.32833052,105520.0,105510.0,0.45415185]
[1738262840407,0.189545,105510.0,105500.0,0.55050358]
[1738262841609,0.189545,105510.0,105500.0,0.55150358]
[1738262841907,0.189545,105510.0,105500.0,0.55350358]
[1738262844114,0.38794385,105510.0,105500.0,0.55350358]
[1738262844308,0.49154737,105510.0,105500.0,0.36394258]
[1738262844506,0.56214737,105510.0,105500.0,0.00314258]
[1738262844704,0.56214737,105510.0,105500.0,0.36394258]
[1738262845313,0.56214737,105510.0,105500.0,0.00314258]
[1738262845810,0.92294737,105510.0,105500.0,0.00314258]
[1738262846107,0.56214737,105510.0,105500.0,0.00314258]
[1738262847414,0.92294737,105510.0,105500.0,0.00314258]
[1738262847621,0.56214737,105510.0,105500.0,0.00314258]
[1738262847916,0.92294737,105510.0,105500.0,0.00314258]
[1738262848215,0.93226445,105510.0,105500.0,0.00314258]
[1738262849318,0.57146445,105510.0,105500.0,0.00314258]
[1738262849512,0.59802445,105510.0,105500.0,0.00314258]
[1738262850603,0.39726093,105510.0,105500.0,0.6571091]
[1738262850808,0.19839885,105510.0,105500.0,0.8771091]
[1738262851007,0.19839885,105510.0,105500.0,0.9441091]
[1738262851412,0.19839885,105510.0,105500.0,2.54771262]
[1738262851619,0.19839885,105510.0,105500.0,2.4441091]
[1738262851909,0.08502808,105510.0,105500.0,2.4441091]
[1738262853315,0.16290346,105530.0,105500.0,2.40553862]
[1738262853619,0.16290346,105530.0,105520.0,1.01473052]
[1738262853812,0.16290346,105530.0,105520.0,1.05473052]
[1738262854011,0.16290346,105530.0,105520.0,1.08943052]
[1738262854617,0.16290346,105530.0,105520.0,1.04943052]
[1738262855221,0.16690346,105530.0,105520.0,1.04943052]
[1738262856423,0.02519,105530.0,105520.0,1.21878225]
[1738262856917,0.02619,105530.0,105520.0,1.25878225]
[1738262857720,0.00156465,105540.0,105530.0,0.189509]
[1738262857928,0.00156465,105540.0,105530.0,0.75027252]
[1738262858725,0.00156465,105540.0,105530.0,0.81027252]
[1738262859113,0.00756465,105540.0,105530.0,0.75127252]
[1738262859426,0.00956465,105540.0,105530.0,0.75127252]
[1738262861926,0.00356465,105540.0,105530.0,0.75027252]
[1738262862128,0.00156465,105540.0,105530.0,0.75027252]
[1738262862332,0.00256465,105540.0,105530.0,0.75027252]
[1738262863614,0.00256465,105540.0,105530.0,0.77027252]
[1738262865030,0.00256465,105540.0,105530.0,0.620109]
[1738262865421,0.00256465,105540.0,105530.0,0.72371252]
[1738262866720,0.03716465,105540.0,105530.0,0.72371252]
[1738262869115,0.03716465,105540.0,105530.0,0.73371252]
[1738262872132,0.03716465,105540.0,105530.0,0.73371252]
[1738262872928,0.03716465,105540.0,105530.0,0.72371252]
[1738262877634,0.22665565,105540.0,105530.0,0.72371252]
[1738262877835,0.22665565,105540.0,105530.0,0.68971252]
[1738262878028,0.22523358,105540.0,105530.0,0.550309]
[1738262878435,0.3288371,105540.0,105530.0,0.550309]
[1738262878636,0.189509,105530.0,105520.0,0.55045758]
[1738262878831,0.261309,105530.0,105520.0,0.6540611]
[1738262879340,0.39147252,105530.0,105520.0,0.36094258]
[1738262879742,0.287869,105530.0,105520.0,0.55046958]
[1738262879939,0.287869,105530.0,105520.0,0.6540731]
[1738262880532,0.261309,105530.0,105520.0,0.6540731]
[1738262880845,0.288869,105530.0,105520.0,0.6540731]
[1738262881342,0.288869,105530.0,105520.0,0.55046958]
[1738262882035,0.39247252,105530.0,105520.0,0.55046958]
[1738262882830,0.288869,105530.0,105520.0,0.55046958]
[1738262883544,0.262309,105530.0,105520.0,0.55046958]
[1738262883742,0.288869,105530.0,105520.0,0.55046958]
[1738262884541,0.262309,105530.0,105520.0,0.6540731]
[1738262884745,0.29827703,105530.0,105520.0,0.6540731]
[1738262886543,0.29827703,105530.0,105520.0,0.55046958]
[1738262890453,0.40188055,105530.0,105520.0,0.55046958]
[1738262891053,0.27171703,105530.0,105520.0,0.55046958]
[1738262891749,0.23621703,105530.0,105520.0,0.6540731]
[1738262891949,0.0373,105530.0,105520.0,0.6887731]
[1738262892152,0.001,105530.0,105520.0,0.6887731]
[1738262892352,0.001,105530.0,105520.0,0.8359331]
[1738262895259,0.001,105530.0,105520.0,1.00528483]
[1738262895450,0.00014258,105540.0,105520.0,0.81575783]
[1738262895652,0.00014258,105540.0,105530.0,0.65391252]
[1738262895850,0.00014258,105540.0,105530.0,0.85391252]
[1738262896970,0.00114258,105540.0,105530.0,0.85391252]
[1738262897456,0.00314258,105540.0,105530.0,0.85391252]
[1738262899265,0.00314258,105540.0,105530.0,0.65391252]
[1738262900063,0.00314258,105540.0,105530.0,0.87959875]
[1738262902566,0.00314258,105540.0,105530.0,0.89959875]
[1738262904867,0.00314258,105540.0,105530.0,1.06883832]
[1738262906471,0.00314258,105540.0,105530.0,1.04883832]
[1738262906772,0.00314258,105540.0,105530.0,1.26883832]
[1738262909570,0.00314258,105540.0,105530.0,1.37244184]
[1738262909770,0.225165,105560.0,105550.0,0.29307652]
[1738262910078,0.225165,105560.0,105550.0,1.01467652]
[1738262910466,0.225165,105560.0,105550.0,0.911073]
[1738262910972,0.225165,105560.0,105550.0,1.01467652]
[1738262911575,0.225165,105560.0,105550.0,0.911073]
[1738262911776,0.228165,105560.0,105550.0,1.01467652]
[1738262912674,0.228165,105560.0,105550.0,0.912073]
[1738262912969,0.228165,105560.0,105550.0,1.01567652]
[1738262913575,0.228165,105560.0,105550.0,0.912073]
[1738262913877,0.228165,105560.0,105550.0,1.01567652]
[1738262915565,0.228165,105560.0,105550.0,0.912073]
[1738262915767,0.0387,105560.0,105550.0,1.01567652]
[1738262916371,0.228155,105560.0,105550.0,1.01567652]
[1738262917372,0.34142881,105560.0,105550.0,1.01567652]
[1738262920679,0.34142881,105560.0,105550.0,0.912073]
[1738262921072,0.15197381,105560.0,105550.0,1.03567652]
[1738262921376,0.0387,105560.0,105550.0,1.06219652]
[1738262921879,0.11469537,105570.0,105560.0,0.189455]
[1738262922179,0.11469537,105570.0,105560.0,0.68795852]
[1738262922683,0.11327381,105570.0,105560.0,0.68795852]
[1738262923182,0.30271081,105570.0,105560.0,0.65385852]
[1738262923584,0.30271081,105570.0,105560.0,0.550255]
[1738262923879,0.30271081,105570.0,105560.0,0.65385852]
[1738262924275,0.33921081,105570.0,105560.0,0.65385852]
[1738262924684,0.33921081,105570.0,105560.0,0.550255]
[1738262924978,0.33921081,105570.0,105560.0,0.65385852]
[1738262925183,0.225937,105570.0,105560.0,0.87954475]
[1738262926585,0.225937,105570.0,105560.0,0.77594123]
[1738262926784,0.225937,105570.0,105560.0,0.87954475]
[1738262927682,0.225937,105570.0,105560.0,0.77594123]
[1738262927879,0.225937,105570.0,105560.0,0.87954475]
[1738262928683,0.225937,105570.0,105560.0,0.77594123]
[1738262928872,0.225937,105570.0,105560.0,0.87954475]
[1738262929074,0.0365,105570.0,105560.0,0.87954475]
[1738262929481,0.002,105570.0,105560.0,0.87954475]
[1738262929785,0.002,105570.0,105560.0,1.10254827]
[1738262929974,0.002,105570.0,105560.0,1.05916475]
[1738262930174,0.002,105570.0,105560.0,2.66276827]
[1738262930474,0.11327381,105580.0,105570.0,0.189437]
[1738262930676,0.31175539,105580.0,105570.0,0.80744404]
[1738262932886,0.31175539,105580.0,105570.0,0.83396404]
[1738262933074,0.31175539,105580.0,105570.0,0.73036052]
[1738262933386,0.31175539,105580.0,105570.0,0.70384052]
[1738262933571,0.31275539,105580.0,105570.0,0.70384052]
[1738262934785,0.31275539,105580.0,105570.0,0.80744404]
[1738262935177,0.001,105580.0,105570.0,0.70384052]
[1738262935582,0.001,105580.0,105570.0,0.80744404]
[1738262936386,0.001,105580.0,105570.0,0.70384052]
[1738262936587,0.001,105580.0,105570.0,0.80744404]
[1738262937190,0.001,105580.0,105570.0,0.81716646]
[1738262939686,0.001,105580.0,105570.0,2.31716646]
[1738262940789,0.001,105580.0,105570.0,2.31703263]
[1738262941191,0.001,105580.0,105570.0,2.54271886]
[1738262941888,0.16942122,105600.0,105590.0,0.29300452]
[1738262942197,0.13642122,105600.0,105590.0,1.01460452]
[1738262943095,0.13642122,105600.0,105590.0,1.06460452]
[1738262943096,0.135,105600.0,105590.0,1.06460452]
[1738262943288,0.135,105600.0,105590.0,1.19568804]
[1738262943289,0.1,105600.0,105590.0,1.19568804]
[1738262943493,0.1,105600.0,105590.0,1.09208452]
[1738262943684,0.101,105600.0,105590.0,1.09208452]
[1738262944791,0.101,105600.0,105590.0,1.09108452]
[1738262945386,0.1,105600.0,105590.0,1.06460452]
[1738262945796,0.1669,105600.0,105590.0,1.06460452]
[1738262946492,0.45988652,105600.0,105590.0,0.911001]
[1738262946685,0.49448652,105600.0,105590.0,0.911001]
[1738262946887,0.189401,105590.0,105580.0,0.36094258]
[1738262947097,0.31948452,105590.0,105580.0,0.00014258]
[1738262947392,0.31948452,105590.0,105580.0,0.36094258]
[1738262947993,0.31948452,105590.0,105580.0,0.00014258]
[1738262948786,0.31948452,105590.0,105580.0,0.00114258]
[1738262949182,0.46440352,105590.0,105570.0,0.3608]
[1738262949386,0.189437,105570.0,105560.0,0.07]
[1738262949591,0.31952052,105570.0,105560.0,0.07]
[1738262949885,0.39092052,105570.0,105560.0,0.620255]
[1738262950088,0.287317,105570.0,105560.0,0.620255]
[1738262950291,0.287317,105570.0,105560.0,0.259455]
[1738262950493,0.287317,105570.0,105560.0,0.95795399]
[1738262950795,0.287317,105570.0,105560.0,0.59715399]
[1738262951685,0.287317,105570.0,105560.0,0.40769899]
[1738262951886,0.39092052,105570.0,105560.0,0.40769899]
[1738262952481,0.42642052,105570.0,105560.0,0.40769899]
[1738262953090,0.42642052,105570.0,105560.0,0.76849899]
[1738262955703,0.53957741,105570.0,105560.0,0.4308]
[1738262956101,1.00398093,105570.0,105560.0,0.07]
[1738262956288,0.189455,105560.0,105550.0,0.00014258]
[1738262956489,0.29305852,105560.0,105550.0,0.00014258]
[1738262958801,0.29305852,105560.0,105550.0,0.00114258]
[1738262964101,1.05746204,105560.0,105550.0,0.00114258]
[1738262964305,1.05746204,105560.0,105530.0,0.00142104]
[1738262964306,0.189491,105540.0,105530.0,0.36222104]
[1738262964508,0.42317804,105540.0,105530.0,0.36222104]
[1738262965099,0.189509,105530.0,105520.0,0.585219]
[1738262965402,0.189509,105530.0,105520.0,0.58536158]
[1738262965804,0.29311252,105530.0,105520.0,0.58536158]
[1738262966401,0.189509,105530.0,105520.0,0.59736158]
[1738262967006,0.29311252,105530.0,105520.0,0.59736158]
[1738262967600,0.32561252,105530.0,105520.0,0.37294258]
[1738262967815,0.36131252,105530.0,105520.0,0.01214258]
[1738262968008,0.75871252,105530.0,105520.0,0.01214258]
[1738262968900,0.39791252,105530.0,105520.0,0.01214258]
[1738262969309,0.39791252,105530.0,105520.0,0.56246958]
[1738262969310,0.36131252,105530.0,105520.0,0.56246958]
[1738262969505,0.248489,105530.0,105520.0,0.56246958]
[1738262969702,0.248489,105530.0,105520.0,0.59616958]
[1738262969907,0.35209252,105530.0,105520.0,0.59616958]
[1738262970116,0.35209252,105530.0,105520.0,0.40664258]
[1738262970502,0.35209252,105530.0,105520.0,0.59616958]
[1738262970707,0.36157426,105530.0,105520.0,0.59616958]
[1738262973502,0.33509426,105530.0,105520.0,0.59616958]
[1738262973709,0.10360352,105540.0,105520.0,0.40664258]
[1738262974015,0.215974,105540.0,105530.0,0.585391]
[1738262974314,0.31957752,105540.0,105530.0,0.585391]
[1738262974515,0.29309752,105540.0,105530.0,0.585391]
[1738262974707,0.189494,105540.0,105530.0,0.585391]
[1738262975217,0.18962058,105550.0,105540.0,0.189491]
[1738262975405,0.18962058,105550.0,105540.0,0.550291]
[1738262975607,0.2932241,105550.0,105540.0,0.550291]
[1738262977216,0.18962058,105550.0,105540.0,0.550291]
[1738262977607,0.2932241,105550.0,105540.0,0.552291]
[1738262978216,0.2932241,105550.0,105540.0,0.553291]
[1738262980920,0.2932241,105550.0,105540.0,0.587691]
[1738262982215,0.37793127,105550.0,105540.0,0.587691]
[1738262986022,0.49108816,105550.0,105540.0,0.587691]
[1738262987414,0.38748464,105550.0,105540.0,0.587691]
[1738262988323,0.38748464,105550.0,105540.0,0.620791]
[1738262993726,0.49108816,105550.0,105540.0,0.003]
[1738262993933,1.02509168,105550.0,105540.0,0.003]
[1738262994122,0.29311252,105530.0,105520.0,0.22546321]
[1738262994429,0.31959252,105530.0,105520.0,0.22546321]
[1738262994829,0.35269252,105530.0,105520.0,0.22546321]
[1738262995226,0.35269252,105530.0,105520.0,0.59426321]
[1738262995434,0.35269252,105530.0,105520.0,0.59826321]
[1738262996326,0.38909252,105530.0,105520.0,0.59826321]
[1738262996834,0.38909252,105530.0,105520.0,0.23746321]
[1738262997825,0.74989252,105530.0,105520.0,0.23746321]
[1738262998023,0.94775658,105530.0,105520.0,0.01214258]
[1738262999731,0.58695658,105530.0,105520.0,0.01214258]
[1738263000436,0.58695658,105530.0,105520.0,0.19866958]
[1738263000735,0.59635387,105530.0,105520.0,0.19866958]
[1738263001237,0.59635387,105530.0,105520.0,0.19066958]
[1738263001534,0.59635387,105530.0,105520.0,0.19266958]
[1738263001931,0.59635387,105530.0,105520.0,0.55346958]
[1738263002131,0.19786406,105530.0,105520.0,0.7070731]
[1738263002337,0.14144611,105540.0,105530.0,0.189509]
[1738263002537,0.16987792,105550.0,105540.0,0.189491]
[1738263002836,0.24680298,105580.0,105570.0,0.189437]
[1738263002837,0.43432717,105580.0,105570.0,0.189437]
[1738263003137,0.43432717,105580.0,105570.0,0.911037]
[1738263003439,0.39832717,105580.0,105570.0,0.911037]
[1738263003827,0.39832717,105580.0,105570.0,2.411037]
[1738263004426,0.40132717,105580.0,105570.0,2.411037]
[1738263005336,0.40232717,105580.0,105570.0,2.412037]
[1738263006135,0.50593069,105580.0,105570.0,0.912037]
[1738263006531,0.50593069,105580.0,105570.0,2.412037]
[1738263006838,0.40232717,105580.0,105570.0,0.912037]
[1738263007536,0.50593069,105580.0,105570.0,0.912037]
[1738263007734,0.30790613,105580.0,105570.0,0.912037]
[1738263008231,0.30490613,105580.0,105570.0,0.911037]
[1738263009031,0.20130261,105580.0,105570.0,0.911037]
[1738263009634,0.20030261,105580.0,105570.0,0.911037]
[1738263009834,0.20230261,105580.0,105570.0,0.911037]
[1738263014335,0.01287861,105580.0,105570.0,0.911037]
[1738263014830,0.00342142,105580.0,105570.0,1.01464052]
[1738263015030,0.00342142,105580.0,105570.0,1.05004052]
[1738263015340,0.00342142,105580.0,105570.0,1.17004052]
[1738263015834,0.00342142,105580.0,105570.0,2.67004052]
[1738263018634,0.00342142,105580.0,105570.0,2.55004052]
[1738263019141,0.00342142,105580.0,105570.0,2.57648052]
[1738263020136,0.29502252,105580.0,105570.0,0.946437]
[1738263020341,0.33052252,105580.0,105570.0,0.757]
[1738263020545,0.33052252,105580.0,105570.0,0.946437]
[1738263020546,0.226919,105580.0,105570.0,0.946437]
[1738263020744,0.33052252,105580.0,105570.0,0.946437]
[1738263020934,0.189437,105570.0,105560.0,0.36094258]
[1738263021140,0.43134404,105570.0,105560.0,0.36094258]
[1738263021444,0.32774052,105570.0,105560.0,0.36094258]
[1738263022348,0.32874052,105570.0,105560.0,0.36094258]
[1738263024444,0.225137,105570.0,105560.0,0.55039758]
[1738263024750,0.190437,105570.0,105560.0,0.55039758]
[1738263025747,0.29404052,105570.0,105560.0,0.55039758]
[1738263026445,0.30361511,105570.0,105560.0,0.36094258]
[1738263028345,0.30361511,105570.0,105560.0,0.55039758]
[1738263028543,0.30361511,105570.0,105560.0,0.00014258]
[1738263028544,0.40721863,105570.0,105560.0,0.00014258]
[1738263028744,0.76801863,105570.0,105560.0,0.00014258]
[1738263033046,0.30361511,105570.0,105560.0,0.36094258]
[1738263033245,0.33005511,105570.0,105560.0,0.55039758]
[1738263033744,0.30361511,105570.0,105560.0,0.55039758]
[1738263033944,0.20001159,105570.0,105560.0,0.55039758]
[1738263034243,0.001,105570.0,105560.0,0.7238011]
[1738263034443,0.001,105570.0,105560.0,0.7596011]
[1738263035043,0.001,105570.0,105560.0,0.65599758]
[1738263036046,0.32853052,105580.0,105570.0,0.189437]
[1738263036247,0.32853052,105580.0,105570.0,0.550237]
[1738263036459,0.189437,105570.0,105560.0,0.59318858]
[1738263036648,0.29304052,105570.0,105560.0,0.55738858]
[1738263036848,0.189437,105570.0,105560.0,0.55738858]
[1738263037044,0.189437,105570.0,105560.0,0.62318858]
[1738263037245,0.189437,105570.0,105560.0,0.62218858]
[1738263037551,0.29304052,105570.0,105560.0,0.62218858]
[1738263037752,0.29304052,105570.0,105560.0,0.62018858]
[1738263038254,0.29304052,105570.0,105560.0,0.58698858]
[1738263038844,0.31948052,105570.0,105560.0,0.36194258]
[1738263039048,0.42308404,105570.0,105560.0,0.36194258]
[1738263039253,0.42308404,105570.0,105560.0,0.00014258]
[1738263039444,0.45678404,105570.0,105560.0,0.00114258]
[1738263039650,0.45678404,105570.0,105560.0,0.00314258]
[1738263040040,0.45678404,105570.0,105560.0,0.00114258]
[1738263040449,0.45678404,105570.0,105560.0,0.00014258]
[1738263040851,0.62814704,105570.0,105540.0,0.75540153]
[1738263041058,0.29307652,105550.0,105540.0,0.75540153]
[1738263041251,0.31951652,105550.0,105540.0,0.75540153]
[1738263041451,0.35251652,105550.0,105540.0,0.94489253]
[1738263041756,0.45612004,105550.0,105540.0,0.39460153]
[1738263041950,0.81692004,105550.0,105540.0,0.39460153]
[1738263042255,0.189491,105540.0,105530.0,0.58094017]
[1738263042465,0.79169804,105540.0,105530.0,0.58094017]
[1738263043471,0.81813804,105540.0,105530.0,0.58094017]
[1738263043655,0.81813804,105540.0,105530.0,0.58594017]
[1738263043855,0.81813804,105540.0,105530.0,0.58794017]
[1738263045056,1.12889334,105540.0,105530.0,0.00714258]
[1738263047754,0.189509,105530.0,105520.0,0.08]
[1738263047951,0.68931252,105530.0,105520.0,0.08]
[1738263049044,0.68931252,105530.0,105520.0,0.083]
[1738263049248,0.68931252,105530.0,105520.0,0.091]
[1738263051851,0.32851252,105530.0,105520.0,0.091]
[1738263053257,0.68931252,105530.0,105520.0,0.091]
[1738263053762,0.69859898,105530.0,105520.0,0.091]
[1738263054457,0.6126935,105530.0,105510.0,0.00014258]
[1738263054658,0.78397304,105520.0,105510.0,0.00014258]
[1738263054860,0.81957304,105520.0,105510.0,0.00014258]
[1738263055563,0.81957304,105520.0,105510.0,0.00414258]
[1738263056461,0.81957304,105520.0,105510.0,0.00614258]
[1738263056857,0.189562,105500.0,105490.0,0.585976]
[1738263057064,0.31960552,105500.0,105490.0,0.618676]
[1738263058159,0.29316552,105500.0,105490.0,0.622676]
[1738263058353,0.217002,105500.0,105490.0,0.631676]
[1738263059068,0.32060552,105500.0,105490.0,0.4421]
[1738263062868,0.33027006,105500.0,105490.0,0.4421]
[1738263064559,0.69107006,105500.0,105490.0,0.013]
[1738263064869,0.72337006,105500.0,105490.0,0.013]
[1738263065761,0.72337006,105500.0,105490.0,0.012]
[1738263065973,0.72237006,105500.0,105490.0,0.003]
[1738263066161,0.72337006,105500.0,105490.0,0.009]
[1738263066360,0.33613006,105500.0,105490.0,0.3698]
[1738263066674,0.22666654,105500.0,105490.0,0.3698]
[1738263067375,0.33027006,105500.0,105490.0,0.3698]
[1738263067572,0.33027006,105500.0,105490.0,0.55938]
[1738263068374,0.22666654,105500.0,105490.0,0.55938]
[1738263068559,0.33027006,105500.0,105490.0,0.55938]
[1738263069063,0.30383006,105500.0,105490.0,0.55938]
[1738263069274,0.33027006,105500.0,105490.0,0.55938]
[1738263069669,0.22666654,105500.0,105490.0,0.55938]
[1738263070069,0.33027006,105500.0,105490.0,0.55938]
[1738263073875,0.22666654,105500.0,105490.0,0.55938]
[1738263074066,0.190562,105500.0,105490.0,0.66298352]
[1738263074473,0.190562,105500.0,105490.0,0.55938]
[1738263074677,0.60492082,105500.0,105490.0,0.55938]
[1738263075783,0.60492082,105500.0,105490.0,0.009]
[1738263076470,0.96572082,105500.0,105490.0,0.009]
[1738263076779,0.60492082,105500.0,105490.0,0.009]
[1738263077480,0.43570866,105500.0,105490.0,0.009]
[1738263078588,0.43470866,105500.0,105490.0,0.003]
[1738263078881,0.43470866,105500.0,105490.0,0.005]
[1738263079273,0.43470866,105500.0,105490.0,0.002]
[1738263079274,0.43770866,105500.0,105490.0,0.002]
[1738263080278,0.18958,105490.0,105480.0,0.55052658]
[1738263080480,0.31962352,105490.0,105480.0,0.55052658]
[1738263081472,0.31962352,105490.0,105480.0,0.55152658]
[1738263081875,0.31962352,105490.0,105480.0,0.36194258]
[1738263082687,0.31962352,105490.0,105480.0,0.00114258]
[1738263082875,0.78402704,105490.0,105480.0,0.00114258]
[1738263083078,0.81652704,105490.0,105480.0,0.00114258]
[1738263083284,0.81652704,105490.0,105480.0,5.8e-07]
[1738263083582,0.189634,105460.0,105450.0,0.57031016]
[1738263083790,0.31967752,105460.0,105450.0,0.57031016]
[1738263084189,0.31967752,105460.0,105450.0,0.93111016]
[1738263085189,0.42428104,105460.0,105450.0,0.29465079]
[1738263085493,0.78508104,105460.0,105450.0,0.29465079]
[1738263085793,0.71337752,105460.0,105450.0,0.29465079]
[1738263086492,0.81698104,105460.0,105450.0,0.29465079]
[1738263086691,0.81698104,105460.0,105450.0,0.29065079]
[1738263086990,0.68693752,105460.0,105450.0,0.29265079]
[1738263087193,0.71337752,105460.0,105450.0,0.29265079]
[1738263087395,0.72270085,105460.0,105450.0,0.29265079]
[1738263087587,0.72170085,105460.0,105450.0,0.28665079]
[1738263088287,0.83521587,105460.0,105450.0,0.005]
[1738263088487,0.80877587,105460.0,105450.0,0.005]
[1738263088693,0.47441587,105460.0,105450.0,0.005]
[1738263091096,0.47441587,105460.0,105450.0,0.3658]
[1738263091691,0.44797587,105460.0,105450.0,0.3658]
[1738263091895,0.44251587,105460.0,105450.0,0.3658]
[1738263092394,0.41607587,105460.0,105450.0,0.3658]
[1738263092593,0.41607587,105460.0,105450.0,0.65905552]
[1738263092594,0.11351502,105460.0,105450.0,0.65905552]
[1738263092788,0.30314902,105460.0,105450.0,0.586852]
[1738263092994,0.40675254,105460.0,105450.0,0.586852]
[1738263094390,0.40675254,105460.0,105450.0,0.586998]
[1738263096600,0.30314902,105460.0,105450.0,0.586998]
[1738263097393,0.40675254,105460.0,105450.0,0.586998]
[1738263097594,0.29323752,105460.0,105450.0,0.586998]
[1738263100001,0.189634,105460.0,105450.0,0.586998]
[1738263101600,0.29323752,105460.0,105450.0,0.586998]
[1738263104102,0.29323752,105460.0,105450.0,0.365946]
[1738263104303,0.29323752,105460.0,105450.0,0.005146]
[1738263104511,0.65403752,105460.0,105450.0,0.005146]
[1738263104700,0.68793752,105460.0,105450.0,0.005146]
[1738263106810,0.32713752,105460.0,105450.0,0.005146]
[1738263107701,0.36173752,105460.0,105450.0,0.005146]
[1738263107902,0.82614104,105460.0,105450.0,0.005146]
[1738263108904,0.93965606,105460.0,105450.0,0.005146]
[1738263109697,0.189688,105430.0,105420.0,0.58663833]
[1738263109903,0.31973152,105430.0,105420.0,0.77634433]
[1738263110714,0.32073152,105430.0,105420.0,0.78334433]
[1738263111013,0.32073152,105430.0,105420.0,0.59363833]
[1738263111207,0.38793152,105430.0,105420.0,0.59363833]
[1738263111597,0.38793152,105430.0,105420.0,0.23783833]
[1738263112614,0.38793152,105430.0,105420.0,0.59563833]
[1738263112817,0.39369152,105430.0,105420.0,0.3628]
[1738263113108,0.78193152,105430.0,105420.0,0.007]
[1738263113306,0.42113152,105430.0,105420.0,0.007]
[1738263116511,0.52473504,105430.0,105420.0,0.007]
[1738263116814,0.53419282,105430.0,105420.0,0.007]
[1738263117111,0.4041493,105430.0,105420.0,0.007]
[1738263117312,0.4305893,105430.0,105420.0,0.007]
[1738263118214,0.54410432,105430.0,105420.0,0.007]
[1738263118412,0.45106432,105430.0,105420.0,0.557506]
[1738263118615,0.44370432,105430.0,105420.0,0.557506]
[1738263118912,0.44370432,105430.0,105420.0,0.655706]
[1738263119099,0.41726432,105430.0,105420.0,0.655706]
[1738263119304,0.44370432,105430.0,105420.0,0.655706]
[1738263122717,0.3301893,105430.0,105420.0,0.655706]
[1738263123417,0.20014578,105430.0,105420.0,0.655706]
[1738263123612,0.001,105430.0,105420.0,0.75930952]
[1738263124221,0.001,105430.0,105420.0,0.79930952]
[1738263124406,0.3033316,105440.0,105420.0,0.56960352]
[1738263124727,0.3033316,105440.0,105430.0,0.550488]
[1738263126017,0.3043316,105440.0,105430.0,0.550488]
[1738263126214,0.1146576,105440.0,105430.0,0.65409152]
[1738263126420,0.1136576,105440.0,105430.0,0.65709152]
[1738263126713,0.00014258,105440.0,105430.0,0.553488]
[1738263126915,0.2934161,105440.0,105430.0,0.553488]
[1738263127215,0.2934161,105440.0,105430.0,0.554488]
[1738263135227,0.3198561,105440.0,105430.0,0.554488]